bitfinex/quotes_SOLUSD_20250726
["timestamp","ask_amount","ask_price","bid_price","bid_amount"]
[1753508771245,0.69,187.01,187.0,0.06]
[1753508772572,6.03730763,187.01,187.0,0.06]
[1753508772771,46.86346154,187.01,187.0,0.06]
[1753508773570,43.11730763,187.01,187.0,0.06]
[1753508774668,42.42730763,187.01,187.0,0.06]
[1753508781066,42.45730763,187.01,187.0,0.06]
[1753508788051,5.37730763,187.01,187.0,0.06]
[1753508788245,42.45730763,187.01,187.0,0.06]
[1753508792459,42.45730763,187.01,187.0,0.78]
[1753508792962,42.45730763,187.01,187.0,0.06]
[1753508792963,49.15574022,187.01,187.0,0.06]
[1753508793587,49.29790179,187.01,187.0,0.06]
[1753508793962,46.90022703,187.01,187.0,0.06]
[1753508794163,49.29790179,187.01,187.0,0.06]
[1753508797580,49.44006336,187.01,187.0,0.06]
[1753508801085,45.82930553,187.01,187.0,0.06]
[1753508802873,49.43773711,187.01,187.0,0.06]
[1753508805788,49.43773711,187.01,186.99,1e-08]
[1753508805789,16.78468397,187.0,186.99,1e-08]
[1753508805979,26.0,186.98,186.97,1e-08]
[1753508806179,69.14610634,186.98,186.97,1e-08]
[1753508806386,75.17427191,186.98,186.97,1e-08]
[1753508807000,79.18177574,186.98,186.97,1e-08]
[1753508807891,16.78468397,186.97,186.96,1e-08]
[1753508808092,31.98809939,186.97,186.95,1e-08]
[1753508808297,29.58688231,186.96,186.95,1e-08]
[1753508808505,45.43438784,186.96,186.95,1e-08]
[1753508808691,47.8320626,186.96,186.95,1e-08]
[1753508809006,47.97422417,186.96,186.95,1e-08]
[1753508809378,53.46512343,186.96,186.95,1e-08]
[1753508812482,16.32512343,186.96,186.95,1e-08]
[1753508812916,49.85669185,186.96,186.95,1e-08]
[1753508813118,53.46512343,186.96,186.95,1e-08]
[1753508820207,51.06744867,186.96,186.95,1e-08]
[1753508820424,53.46512343,186.96,186.95,1e-08]
[1753508824711,15.64512343,186.96,186.95,0.67000001]
[1753508824907,52.76512343,186.96,186.95,0.67000001]
[1753508825230,52.76512343,186.96,186.95,1e-08]
[1753508825432,52.76512343,186.96,186.92,0.06]
[1753508825433,26.0,186.93,186.91,1e-08]
[1753508825616,47.1520626,186.92,186.91,1e-08]
[1753508825807,47.8120626,186.92,186.91,1e-08]
[1753508826707,52.5019449,186.92,186.91,1e-08]
[1753508828928,52.78626804,186.92,186.91,1e-08]
[1753508830314,49.15576491,186.92,186.91,1e-08]
[1753508830928,53.40120031,186.92,186.91,1e-08]
[1753508833105,53.40075728,186.92,186.91,1e-08]
[1753508834931,70.18544125,186.92,186.91,1e-08]
[1753508837230,26.0,186.89,186.87,0.77]
[1753508837437,39.53767476,186.88,186.87,0.77]
[1753508838629,44.88870215,186.88,186.87,0.77]
[1753508841237,45.17302529,186.88,186.87,0.77]
[1753508841833,45.17302529,186.88,186.87,0.06]
[1753508842038,49.15835864,186.88,186.87,0.06]
[1753508845357,52.74673306,186.88,186.87,0.06]
[1753508845760,53.40673306,186.88,186.87,1e-08]
[1753508845931,70.19141703,186.88,186.87,1e-08]
[1753508846136,26.0,186.85,186.83,1e-08]
[1753508846322,47.11138253,186.84,186.83,1e-08]
[1753508846523,47.77138253,186.84,186.83,1e-08]
[1753508846854,47.15138253,186.84,186.83,0.71000001]
[1753508847056,52.50355551,186.84,186.83,1e-08]
[1753508848425,53.16355551,186.84,186.83,1e-08]
[1753508849244,70.09040105,186.84,186.83,1e-08]
[1753508849453,70.23256262,186.84,186.83,1e-08]
[1753508851556,33.05256262,186.84,186.83,1e-08]
[1753508851751,74.46177899,186.84,186.83,1e-08]
[1753508852420,73.80177899,186.84,186.83,1e-08]
[1753508852642,74.46177899,186.84,186.83,1e-08]
[1753508853151,73.80177899,186.84,186.83,1e-08]
[1753508854066,74.46177899,186.84,186.83,1e-08]
[1753508855356,73.80177899,186.84,186.83,1e-08]
[1753508856548,74.49177899,186.84,186.83,1e-08]
[1753508858327,73.80177899,186.84,186.83,1e-08]
[1753508860339,36.62177899,186.84,186.83,1e-08]
[1753508860539,73.78177899,186.84,186.83,1e-08]
[1753508861858,73.78177899,186.84,186.83,0.65000001]
[1753508862160,73.78177899,186.84,186.83,1e-08]
[1753508864076,7.07370777,186.84,186.83,0.65000001]
[1753508864236,5.35195843,186.85,186.83,0.65000001]
[1753508864574,42.53195843,186.85,186.83,0.65000001]
[1753508865260,5.35131374,186.87,186.83,0.65000001]
[1753508865446,37.2,186.86,186.83,0.65000001]
[1753508866243,0.03,186.84,186.83,0.65000001]
[1753508867963,42.08187653,186.86,186.83,0.65000001]
[1753508870442,5.350245,186.91,186.85,2.39767476]
[1753508870647,5.350245,186.91,186.86,0.65]
[1753508870964,42.530245,186.91,186.86,0.65]
[1753508872263,44.92791976,186.91,186.86,0.65]
[1753508873864,44.99760407,186.92,186.87,1.5745]
[1753508874064,44.99760407,186.92,186.88,0.65]
[1753508876649,44.99760407,186.92,186.87,1.5745]
[1753508876872,44.99760407,186.92,186.87,2.2245]
[1753508876873,2.39767476,186.9,186.87,2.2245]
[1753508877171,40.28767476,186.9,186.87,2.2245]
[1753508877589,37.89,186.9,186.87,2.2245]
[1753508877758,40.28767476,186.9,186.87,2.2245]
[1753508880475,5.35074107,186.89,186.87,2.2245]
[1753508880879,40.28767476,186.88,186.83,1e-08]
[1753508881083,2.39767476,186.85,186.83,1e-08]
[1753508881782,3.08767476,186.85,186.83,1e-08]
[1753508882381,2.39767476,186.84,186.83,1e-08]
[1753508882579,7.74984774,186.84,186.83,1e-08]
[1753508882879,9.10597782,186.84,186.83,1e-08]
[1753508883288,9.79597782,186.84,186.83,1e-08]
[1753508883669,9.10597782,186.84,186.83,1e-08]
[1753508886973,5.35217298,186.84,186.83,0.70000001]
[1753508887487,5.35074107,186.89,186.83,6.03410485]
[1753508887684,5.35074107,186.89,186.85,3.75380484]
[1753508887982,5.35074107,186.89,186.86,0.7]
[1753508888800,5.35074107,186.89,186.84,3.75380484]
[1753508889093,5.35074107,186.89,186.85,0.7]
[1753508889506,5.35074107,186.89,186.84,3.75380484]
[1753508889679,5.35074107,186.89,186.86,0.7]
[1753508890184,6.01074107,186.89,186.86,0.7]
[1753508893885,5.35074107,186.89,186.86,0.7]
[1753508894973,6.01074107,186.89,186.86,0.7]
[1753508896495,9.76454591,186.89,186.83,5.33410485]
[1753508896700,6.01130168,186.88,186.84,0.7]
[1753508897795,6.01130168,186.88,186.85,0.7]
[1753508900294,5.35130168,186.88,186.85,0.7]
[1753508901298,5.35130168,186.88,186.83,5.33410485]
[1753508901501,5.35130168,186.88,186.86,0.7]
[1753508902001,5.35130168,186.88,186.85,0.7]
[1753508902302,6.01130168,186.88,186.85,0.7]
[1753508902510,5.35130168,186.88,186.85,0.7]
[1753508904719,6.01130168,186.88,186.85,0.7]
[1753508908212,6.01139762,186.87,186.83,4.68132027]
[1753508908380,6.01139762,186.87,186.84,0.7]
[1753508909404,6.01102739,186.88,186.85,0.7]
[1753508910102,6.01102739,186.88,186.85,0.76]
[1753508915695,0.66,186.87,186.85,0.06]
[1753508915886,3.06102026,186.87,186.85,0.06]
[1753508916391,0.69,186.86,186.85,0.06]
[1753508916604,5.35160012,186.86,186.85,0.06]
[1753508917522,6.04160012,186.86,186.85,0.06]
[1753508918205,5.35160012,186.86,186.85,0.06]
[1753508922404,6.04160012,186.86,186.85,0.06]
[1753508923016,5.35160012,186.86,186.85,0.06]
[1753508923395,6.04160012,186.86,186.85,0.06]
[1753508923719,49.58909719,186.86,186.85,0.06]
[1753508924014,28.40102026,186.84,186.83,1e-08]
[1753508924222,41.3644971,186.84,186.83,1e-08]
[1753508924522,42.0544971,186.84,186.83,1e-08]
[1753508929520,38.04802029,186.84,186.83,1e-08]
[1753508929728,42.05075958,186.84,186.83,1e-08]
[1753508930831,79.19075958,186.84,186.83,1e-08]
[1753508934428,75.58593253,186.84,186.83,1e-08]
[1753508934613,79.18645007,186.84,186.83,1e-08]
[1753508935004,79.18430478,186.84,186.83,1e-08]
[1753508936107,75.58378724,186.84,186.83,1e-08]
[1753508936513,38.44378724,186.84,186.83,1e-08]
[1753508936724,75.58378724,186.84,186.83,1e-08]
[1753508936925,79.18358482,186.84,186.83,1e-08]
[1753508940628,76.78256456,186.84,186.83,1e-08]
[1753508940935,79.18358482,186.84,186.83,1e-08]
[1753508942330,79.46790796,186.84,186.83,1e-08]
[1753508942833,79.46503336,186.84,186.83,1e-08]
[1753508957447,79.46483998,186.84,186.83,1e-08]
[1753508963140,79.47175001,186.84,186.83,1e-08]
[1753508964863,78.78175001,186.84,186.83,1e-08]
[1753508965571,79.46175001,186.84,186.83,1e-08]
[1753508966163,42.32175001,186.84,186.83,1e-08]
[1753508966553,79.46175001,186.84,186.83,1e-08]
[1753508971155,83.96125526,186.84,186.83,1e-08]
[1753508971564,100.74593923,186.84,186.83,1e-08]
[1753508971754,16.78468397,186.83,186.79,0.06]
[1753508972059,2.40102026,186.8,186.79,0.75]
[1753508972261,39.54102026,186.8,186.79,0.75]
[1753508972477,47.14525389,186.8,186.79,0.75]
[1753508972952,52.49857294,186.8,186.79,0.75]
[1753508973349,48.49394351,186.8,186.79,0.75]
[1753508973675,52.50752995,186.8,186.79,0.75]
[1753508985988,52.50607787,186.8,186.79,0.75]
[1753508986497,53.15607787,186.8,186.79,0.06]
[1753508987396,53.15607787,186.8,186.75,1.3712]
[1753508987597,7.61173856,186.79,186.75,1.3712]
[1753508987804,37.14,186.78,186.75,1.3712]
[1753508988104,39.54102026,186.78,186.75,1.3712]
[1753508989105,5.35417893,186.77,186.75,1.3712]
[1753508989394,5.35417893,186.77,186.75,2.0712]
[1753508991609,42.49446562,186.76,186.75,1.3712]
[1753508992187,42.49446562,186.76,186.75,2.0712]
[1753508993391,42.49446562,186.76,186.75,1.3712]
[1753508994317,42.49446562,186.76,186.75,0.06]
[1753508996705,37.14,186.76,186.75,0.76]
[1753508998196,42.49426271,186.77,186.75,0.76]
[1753509001415,43.14426271,186.77,186.75,0.06]
[1753509004223,6.00426271,186.77,186.75,0.06]
[1753509004431,42.49426271,186.77,186.75,0.76]
[1753509005023,5.35426271,186.77,186.75,0.76]
[1753509005527,42.49426271,186.77,186.75,0.76]
[1753509007331,42.49389227,186.78,186.75,0.76]
[1753509007627,43.20389227,186.78,186.75,0.76]
[1753509008624,6.06389227,186.78,186.75,0.76]
[1753509008829,43.20389227,186.78,186.75,0.76]
[1753509010332,43.20389227,186.78,186.75,0.06]
[1753509010929,0.71,186.77,186.75,0.06]
[1753509012418,6.06421244,186.77,186.75,0.06]
[1753509014445,5.35421244,186.77,186.75,0.06]
[1753509014647,6.06446562,186.76,186.75,0.06]
[1753509015735,16.09728238,186.76,186.75,0.06]
[1753509016342,13.69626212,186.76,186.75,0.06]
[1753509016549,16.09728238,186.76,186.75,0.06]
[1753509016846,16.09670048,186.76,186.75,0.06]
[1753509027962,16.09053041,186.76,186.75,0.06]
[1753509028463,16.09029459,186.76,186.75,0.06]
[1753509039071,16.09029459,186.76,186.75,1e-08]
[1753509042167,16.12029459,186.76,186.75,1e-08]
[1753509042457,16.40461773,186.76,186.75,1e-08]
[1753509044978,53.54461773,186.76,186.75,1e-08]
[1753509048979,53.54246857,186.76,186.75,1e-08]
[1753509050360,70.32715254,186.76,186.75,1e-08]
[1753509052003,70.32691284,186.76,186.75,1e-08]
[1753509057677,26.0,186.73,186.71,0.06]
[1753509057878,47.16344011,186.72,186.71,0.06]
[1753509058088,51.39340087,186.72,186.71,0.06]
[1753509059014,52.51905279,186.72,186.71,0.06]
[1753509059812,53.17905279,186.72,186.71,0.06]
[1753509060495,49.17191447,186.72,186.71,0.06]
[1753509060698,53.18251405,186.72,186.71,0.06]
[1753509061296,26.0,186.69,186.67,0.06]
[1753509061492,43.55086543,186.68,186.67,0.06]
[1753509061702,47.1610664,186.68,186.67,0.06]
[1753509062699,52.51782663,186.68,186.67,0.06]
[1753509063004,53.46214977,186.68,186.67,0.06]
[1753509063401,15.37782663,186.68,186.67,0.06]
[1753509063608,74.90762566,186.68,186.67,0.77]
[1753509063798,78.51782663,186.68,186.67,0.77]
[1753509064325,74.90762566,186.68,186.67,0.77]
[1753509065315,70.89778049,186.68,186.67,0.77]
[1753509066519,33.75778049,186.68,186.67,0.77]
[1753509066731,70.89778049,186.68,186.67,0.77]
[1753509067724,33.75778049,186.68,186.67,0.06]
[1753509067922,70.89778049,186.68,186.67,0.06]
[1753509068844,70.89778049,186.68,186.67,0.78]
[1753509070828,70.89778049,186.68,186.67,0.06]
[1753509073037,33.75778049,186.68,186.67,0.06]
[1753509073246,70.89778049,186.68,186.67,0.06]
[1753509073648,71.58778049,186.68,186.67,0.06]
[1753509076236,53.18432346,186.68,186.67,0.06]
[1753509078429,2.40102026,186.64,186.63,0.06]
[1753509078629,39.54102026,186.64,186.63,0.06]
[1753509079826,44.89892853,186.64,186.63,0.06]
[1753509080028,45.58892853,186.64,186.63,0.06]
[1753509080229,48.89590668,186.64,186.63,0.06]
[1753509080453,52.49305407,186.64,186.63,0.06]
[1753509081242,53.18305407,186.64,186.63,0.06]
[1753509081755,26.0,186.61,186.59,0.06]
[1753509081931,39.54102026,186.6,186.59,0.06]
[1753509082351,40.23102026,186.6,186.59,0.06]
[1753509082956,39.54102026,186.6,186.59,0.06]
[1753509083454,44.90007706,186.6,186.59,0.06]
[1753509083653,44.90007706,186.6,186.59,0.78]
[1753509084336,44.90007706,186.6,186.59,0.06]
[1753509085363,28.40102026,186.61,186.59,0.78]
[1753509085541,37.14,186.6,186.59,0.78]
[1753509087634,26.0,186.61,186.59,0.78]
[1753509087840,37.16,186.62,186.59,0.78]
[1753509088056,28.40102026,186.64,186.59,0.78]
[1753509088262,37.16,186.63,186.59,2.3223]
[1753509088571,37.16,186.63,186.6,0.72]
[1753509090070,42.51828063,186.63,186.6,0.72]
[1753509090772,5.35828063,186.63,186.6,0.72]
[1753509093065,5.35828063,186.63,186.59,4.00332026]
[1753509093370,26.0,186.64,186.61,3.12102026]
[1753509093666,42.51769493,186.65,186.62,0.72]
[1753509093872,42.51769493,186.65,186.61,2.40102026]
[1753509094169,42.51769493,186.65,186.62,0.72]
[1753509097369,43.21769493,186.65,186.62,0.72]
[1753509099173,43.21769493,186.65,186.61,2.40102026]
[1753509099378,0.7,186.64,186.6,7.2966]
[1753509099559,0.7,186.64,186.6,9.69762026]
[1753509101879,6.05805789,186.64,186.6,9.69762026]
[1753509102078,0.7,186.63,186.6,9.69762026]
[1753509103356,0.7,186.63,186.6,7.2966]
[1753509104170,6.05821448,186.63,186.6,7.2966]
[1753509106805,6.05821448,186.63,186.6,7.3566]
[1753509112678,6.05821448,186.63,186.6,0.06]
[1753509114088,6.05821448,186.63,186.6,0.76]
[1753509115989,6.05821448,186.63,186.6,0.06]
[1753509116690,6.0585876,186.62,186.6,0.06]
[1753509122400,5.35819535,186.63,186.6,0.06]
[1753509122595,0.7,186.61,186.6,0.06]
[1753509123070,5.35819535,186.63,186.6,0.06]
[1753509123277,0.7,186.62,186.6,0.06]
[1753509123493,6.05850967,186.62,186.6,0.06]
[1753509131225,5.35850967,186.62,186.6,0.06]
[1753509131419,7.07789336,186.61,186.6,0.06]
[1753509133221,12.43666298,186.61,186.6,0.06]
[1753509133400,9.37564272,186.61,186.6,0.06]
[1753509133604,26.0,186.61,186.6,0.06]
[1753509134007,5.35853581,186.62,186.6,0.06]
[1753509134422,6.01853581,186.62,186.6,0.06]
[1753509134823,0.66,186.62,186.6,0.06]
[1753509135421,10.03273602,186.62,186.6,0.06]
[1753509135630,6.01855675,186.62,186.6,0.06]
[1753509139825,0.03,186.63,186.6,0.75]
[1753509140004,9.40262039,186.63,186.6,3.15102026]
[1753509140201,4.01434857,186.62,186.6,3.15102026]
[1753509142949,4.01434857,186.62,186.6,2.46102026]
[1753509143242,4.04434857,186.63,186.61,0.69]
[1753509143447,0.03,186.63,186.62,3.09102026]
[1753509143739,0.03,186.63,186.62,3.6268685]
[1753509144640,0.03,186.63,186.62,8.98535097]
[1753509148333,0.03,186.63,186.62,3.6268685]
[1753509148525,0.03,186.63,186.62,3.09102026]
[1753509149733,0.03,186.63,186.62,25.2341867]
[1753509152057,0.03,186.63,186.62,25.51850984]
[1753509152428,0.03,186.67,186.63,0.28432314]
[1753509152625,0.03,186.67,186.66,19.18570423]
[1753509152834,0.03,186.67,186.66,20.41143764]
[1753509153330,0.03,186.67,186.66,25.76877183]
[1753509153529,0.03,186.67,186.66,26.05309497]
[1753509153858,0.03,186.67,186.66,32.43739497]
[1753509154149,0.03,186.71,186.67,17.06900711]
[1753509154446,0.03,186.71,186.7,19.18570423]
[1753509154756,0.03,186.71,186.7,19.72132286]
[1753509154936,0.03,186.71,186.7,25.5212207]
[1753509155443,0.03,186.71,186.7,30.87740709]
[1753509156928,0.03,186.71,186.7,27.12194804]
[1753509158122,0.03,186.71,186.7,30.87740709]
[1753509158324,0.03,186.71,186.7,68.05740709]
[1753509159150,0.03,186.71,186.7,68.34173023]
[1753509160720,0.03,186.71,186.7,69.86393023]
[1753509162244,0.75,186.71,186.7,21.07576165]
[1753509162546,0.75,186.71,186.7,57.72014302]
[1753509163332,0.75,186.71,186.7,63.07632941]
[1753509163333,0.03,186.71,186.7,63.07632941]
[1753509163535,0.03,186.71,186.7,57.72014302]
[1753509163750,0.03,186.71,186.7,58.25576165]
[1753509167362,0.75,186.71,186.7,58.25576165]
[1753509167531,0.75,186.71,186.7,57.72014302]
[1753509168144,0.75,186.71,186.7,3.75545905]
[1753509168352,0.75,186.71,186.7,37.2]
[1753509168536,0.75,186.71,186.7,40.95545905]
[1753509172266,0.75,186.71,186.7,37.2]
[1753509172558,0.03,186.71,186.7,41.61545905]
[1753509172943,0.03,186.71,186.7,42.15107768]
[1753509174360,0.03,186.71,186.7,47.50726407]
[1753509174860,0.03,186.71,186.7,46.84726407]
[1753509175041,0.75,186.71,186.7,3.75545905]
[1753509175247,0.75,186.71,186.7,40.93545905]
[1753509176463,0.75,186.71,186.7,37.18]
[1753509177965,0.75,186.71,186.7,40.93545905]
[1753509180179,0.03,186.71,186.7,40.93545905]
[1753509184974,0.03,186.71,186.7,63.07632941]
[1753509185151,0.03,186.71,186.7,63.73632941]
[1753509185353,0.03,186.71,186.7,151.42065255]
[1753509186174,0.03,186.71,186.7,155.1761116]
[1753509186865,0.03,186.71,186.7,159.6802287]
[1753509188881,0.03,186.71,186.7,155.17474938]
[1753509189456,0.03,186.71,186.7,156.81524938]
[1753509192983,0.03,186.72,186.71,17.06900711]
[1753509193186,0.03,186.72,186.71,105.72459706]
[1753509193381,0.03,186.72,186.71,109.479375]
[1753509194573,0.03,186.72,186.71,114.83527452]
[1753509194888,0.03,186.72,186.71,114.29968457]
[1753509198586,0.03,186.76,186.75,17.06900711]
[1753509198765,0.03,186.76,186.75,145.91926028]
[1753509198972,0.03,186.76,186.75,145.38378505]
[1753509200088,0.03,186.76,186.75,146.10378505]
[1753509201387,0.03,186.76,186.75,151.45853739]
[1753509203304,0.03,186.79,186.78,26.0]
[1753509203470,0.03,186.79,186.78,57.71946191]
[1753509203974,0.7,186.79,186.78,57.71946191]
[1753509206370,0.7,186.79,186.78,63.6087434]
[1753509206969,0.03,186.79,186.78,63.89306654]
[1753509207569,0.03,186.79,186.78,64.61306654]
[1753509208216,0.03,186.79,186.78,90.61306654]
[1753509209013,0.03,186.79,186.78,178.01306654]
[1753509209211,0.03,186.79,186.78,181.23245526]
[1753509210806,0.03,186.79,186.78,177.47767732]
[1753509211916,0.03,186.79,186.78,176.75767732]
[1753509213002,0.7,186.79,186.78,176.75767732]
[1753509213427,0.7,186.79,186.78,113.29335418]
[1753509213603,0.7,186.79,186.78,150.47335418]
[1753509213808,0.7,186.79,186.78,150.75767732]
[1753509214099,0.7,186.79,186.78,150.47335418]
[1753509214320,0.7,186.79,186.78,150.75767732]
[1753509214840,0.7,186.79,186.78,150.77767732]
[1753509215016,0.7,186.79,186.78,113.57767732]
[1753509215203,0.7,186.79,186.78,150.77767732]
[1753509222222,0.7,186.79,186.78,145.13946191]
[1753509226826,0.7,186.79,186.78,57.73946191]
[1753509227037,0.7,186.79,186.78,57.69946191]
[1753509227819,0.7,186.79,186.78,63.05335418]
[1753509228026,0.7,186.79,186.78,63.5887434]
[1753509228227,0.03,186.79,186.78,64.57306654]
[1753509232528,0.03,186.79,186.78,68.32784448]
[1753509232828,0.03,186.79,186.78,155.72784448]
[1753509233027,0.03,186.79,186.78,155.19245526]
[1753509234044,0.03,186.8,186.79,24.57856299]
[1753509234346,0.1,186.82,186.81,42.78468397]
[1753509234563,0.1,186.82,186.81,171.95908829]
[1753509234721,0.1,186.82,186.81,172.12378505]
[1753509236140,0.1,186.82,186.81,177.47681754]
[1753509239939,0.1,186.82,186.81,176.77681754]
[1753509240256,0.8,186.82,186.81,176.77681754]
[1753509241370,0.8,186.82,186.81,133.93946191]
[1753509241562,0.8,186.82,186.81,171.13946191]
[1753509242258,0.8,186.82,186.81,130.32684554]
[1753509242470,0.8,186.82,186.81,108.08162348]
[1753509242650,0.8,186.82,186.81,145.44378505]
[1753509242850,0.8,186.82,186.81,141.68900711]
[1753509243047,0.8,186.82,186.81,145.44378505]
[1753509243276,0.8,186.82,186.81,145.15946191]
[1753509245052,0.8,186.82,186.81,150.5124944]
[1753509247373,0.8,186.82,186.81,63.1124944]
[1753509247673,0.8,186.82,186.81,57.75946191]
[1753509253580,0.8,186.82,186.81,63.1124944]
[1753509256169,0.8,186.82,186.81,59.35771646]
[1753509256361,0.8,186.82,186.81,63.1124944]
[1753509258693,0.8,186.82,186.81,63.1124944]
[1753509260885,0.8,186.82,186.81,24.53893787]
[1753509261059,0.8,186.82,186.81,61.69893787]
[1753509263585,0.1,186.82,186.81,176.57856425]
[1753509263795,0.1,186.82,186.81,176.04326101]
[1753509264085,0.03,186.84,186.83,43.06900711]
[1753509264384,0.03,186.85,186.84,17.06900711]
[1753509264587,0.03,186.85,186.84,20.13022852]
[1753509265588,0.03,186.85,186.84,25.4824015]
[1753509265786,0.03,186.85,186.84,26.01761879]
[1753509266774,0.03,186.85,186.84,27.36513812]
[1753509266974,0.03,186.86,186.84,27.36513812]
[1753509267174,0.03,186.86,186.85,84.65774785]
[1753509267485,0.03,186.86,186.85,64.00963439]
[1753509268073,0.03,186.86,186.85,151.40963439]
[1753509274492,0.03,186.86,186.85,150.74963439]
[1753509275493,0.72,186.86,186.85,150.74963439]
[1753509275668,0.72,186.86,186.85,152.10079539]
[1753509275879,0.03,186.86,186.85,152.10079539]
[1753509276397,0.03,186.86,186.85,152.08079539]
[1753509276591,0.03,186.86,186.85,114.92079539]
[1753509276908,0.03,186.86,186.85,152.08079539]
[1753509277078,0.03,186.86,186.85,152.76079539]
[1753509279110,0.03,186.86,186.85,152.08079539]
[1753509280186,0.03,186.86,186.85,152.76079539]
[1753509280505,0.03,186.86,186.85,152.08079539]
[1753509282313,0.03,186.86,186.85,152.76079539]
[1753509284497,0.03,186.86,186.85,152.08079539]
[1753509286309,0.03,186.86,186.85,152.76079539]
[1753509286902,0.03,186.86,186.85,151.4110149]
[1753509287214,0.03,186.88,186.86,43.06900711]
[1753509287517,0.03,186.88,186.87,56.85877559]
[1753509288805,0.03,186.88,186.87,58.20723013]
[1753509290118,0.03,186.88,186.87,63.55854387]
[1753509291720,0.03,186.88,186.87,66.17514902]
[1753509292024,0.03,186.88,186.87,153.57514902]
[1753509292327,0.03,186.88,186.87,153.04001765]
[1753509294323,0.03,186.88,186.87,115.90001765]
[1753509294504,0.03,186.88,186.87,153.04001765]
[1753509298034,0.03,186.88,186.87,153.72001765]
[1753509298733,0.03,186.88,186.87,153.04001765]
[1753509298931,0.03,186.88,186.87,115.90001765]
[1753509299110,0.03,186.88,186.87,153.02001765]
[1753509300941,0.73,186.88,186.87,115.90001765]
[1753509301118,0.73,186.88,186.87,153.02001765]
[1753509301440,0.73,186.88,186.87,150.4034125]
[1753509301737,0.73,186.88,186.87,104.18468397]
[1753509301912,0.73,186.88,186.87,141.32468397]
[1753509302337,0.73,186.88,186.87,37.14]
[1753509302715,0.73,186.88,186.85,1.351161]
[1753509302932,9.82844218,186.88,186.86,37.16]
[1753509303135,0.7,186.87,186.86,37.16]
[1753509303839,4.44741479,186.87,186.86,37.16]
[1753509304010,9.79872853,186.87,186.86,37.16]
[1753509307348,0.7,186.87,186.86,37.16]
[1753509318841,6.05131374,186.87,186.86,37.16]
[1753509320055,0.7,186.87,186.86,37.16]
[1753509325758,0.7,186.87,186.86,37.22]
[1753509326168,6.05131374,186.87,186.86,37.22]
[1753509326856,8.45238662,186.87,186.86,0.06]
[1753509335993,13.95464937,186.87,186.86,0.06]
[1753509336292,13.95464937,186.87,186.85,1.411161]
[1753509336487,3.12107288,186.86,186.85,1.411161]
[1753509336658,34.472673,186.86,186.85,1.411161]
[1753509336862,34.61483457,186.86,186.85,1.411161]
[1753509337687,34.75699614,186.86,186.85,1.411161]
[1753509343187,38.75311966,186.86,186.85,1.411161]
[1753509345398,42.35087872,186.86,186.85,1.411161]
[1753509346883,38.3547552,186.86,186.85,1.411161]
[1753509347289,42.3533536,186.86,186.85,1.411161]
[1753509348190,2.89144227,186.91,186.87,26.0]
[1753509348397,0.1,186.91,186.9,2.40107288]
[1753509348595,0.1,186.91,186.86,38.0]
[1753509348981,0.03,186.87,186.86,38.0]
[1753509349382,0.03,186.87,186.86,43.35160012]
[1753509349573,0.03,186.87,186.86,62.53735697]
[1753509350789,0.03,186.87,186.86,63.88501313]
[1753509361410,0.03,186.87,186.86,9.10032916]
[1753509361595,0.03,186.87,186.86,3.74872904]
[1753509361784,0.03,186.87,186.86,41.64872904]
[1753509363478,0.03,186.87,186.86,47.00032916]
[1753509366602,0.03,186.87,186.86,43.25160012]
[1753509366909,0.03,186.87,186.86,47.00032916]
[1753509370300,0.03,186.87,186.86,47.06032916]
[1753509370905,0.03,186.87,186.86,45.71150982]
[1753509371789,0.74,186.87,186.86,45.71150982]
[1753509372292,0.03,186.87,186.86,45.71150982]